Workbook

Sheet Feuil1
A1: 23.1.1 Effectifs des enseignants du secondaire général par ordre enseignement, genre et qualification
B2: Type de personnel
B3: TOTAL GENERAL | E3: 1. ADMINISTRATIF | H3: 2. ENSEIGNANT PERMANENT | K3: 3. ENSEIGNANT VACATAIRE | N3: 4. APPUI | Q3: 5. FORMATEUR | T3: NON DECLARE
B4: Qualifié/non qualifié | E4: Qualifié/non qualifié | H4: Qualifié/non qualifié | K4: Qualifié/non qualifié | N4: Qualifié/non qualifié | Q4: Qualifié/non qualifié | T4: Qualifié/non qualifié
B5: TOTAL GENERAL | C5: Qualifié | D5: Non qualifié | E5: TOTAL GENERAL | F5: Qualifié | G5: Non qualifié | H5: TOTAL GENERAL | I5: Qualifié | J5: Non qualifié | K5: TOTAL GENERAL | L5: Qualifié | M5: Non qualifié | N5: TOTAL GENERAL | O5: Qualifié | P5: Non qualifié | Q5: TOTAL GENERAL | R5: Qualifié | S5: Non qualifié | T5: TOTAL GENERAL | U5: Qualifié | V5: Non qualifié
A6: Public
A7: Homme | B7: 2511 | C7: 2510 | D7: 1 | E7: 0 | F7: 0 | G7: 0 | H7: 2430 | I7: 2430 | J7: 0 | K7: 76 | L7: 76 | M7: 0 | N7: 0 | O7: 0 | P7: 0 | Q7: 5 | R7: 4 | S7: 1 | T7: 0 | U7: 0 | V7: 0
A8: Femme | B8: 1045 | C8: 1045 | D8: 0 | E8: 0 | F8: 0 | G8: 0 | H8: 948 | I8: 948 | J8: 0 | K8: 96 | L8: 96 | M8: 0 | N8: 0 | O8: 0 | P8: 0 | Q8: 1 | R8: 1 | S8: 0 | T8: 0 | U8: 0 | V8: 0
A9: TOTAL GENERAL | B9: 3556 | C9: 3555 | D9: 1 | E9: 0 | F9: 0 | G9: 0 | H9: 3378 | I9: 3378 | J9: 0 | K9: 172 | L9: 172 | M9: 0 | N9: 0 | O9: 0 | P9: 0 | Q9: 6 | R9: 5 | S9: 1 | T9: 0 | U9: 0 | V9: 0
A10: Privé Catholique
A11: Homme | B11: 648 | C11: 648 | D11: 0 | E11: 0 | F11: 0 | G11: 0 | H11: 531 | I11: 531 | J11: 0 | K11: 115 | L11: 115 | M11: 0 | N11: 0 | O11: 0 | P11: 0 | Q11: 2 | R11: 2 | S11: 0 | T11: 0 | U11: 0 | V11: 0
A12: Femme | B12: 172 | C12: 172 | D12: 0 | E12: 0 | F12: 0 | G12: 0 | H12: 142 | I12: 142 | J12: 0 | K12: 30 | L12: 30 | M12: 0 | N12: 0 | O12: 0 | P12: 0 | Q12: 0 | R12: 0 | S12: 0 | T12: 0 | U12: 0 | V12: 0
A13: TOTAL GENERAL | B13: 820 | C13: 820 | D13: 0 | E13: 0 | F13: 0 | G13: 0 | H13: 673 | I13: 673 | J13: 0 | K13: 145 | L13: 145 | M13: 0 | N13: 0 | O13: 0 | P13: 0 | Q13: 2 | R13: 2 | S13: 0 | T13: 0 | U13: 0 | V13: 0
A14: Privé Protestant
A15: Homme | B15: 164 | C15: 164 | D15: 0 | E15: 0 | F15: 0 | G15: 0 | H15: 126 | I15: 126 | J15: 0 | K15: 38 | L15: 38 | M15: 0 | N15: 0 | O15: 0 | P15: 0 | Q15: 0 | R15: 0 | S15: 0 | T15: 0 | U15: 0 | V15: 0
A16: Femme | B16: 35 | C16: 35 | D16: 0 | E16: 0 | F16: 0 | G16: 0 | H16: 34 | I16: 34 | J16: 0 | K16: 1 | L16: 1 | M16: 0 | N16: 0 | O16: 0 | P16: 0 | Q16: 0 | R16: 0 | S16: 0 | T16: 0 | U16: 0 | V16: 0
A17: TOTAL GENERAL | B17: 199 | C17: 199 | D17: 0 | E17: 0 | F17: 0 | G17: 0 | H17: 160 | I17: 160 | J17: 0 | K17: 39 | L17: 39 | M17: 0 | N17: 0 | O17: 0 | P17: 0 | Q17: 0 | R17: 0 | S17: 0 | T17: 0 | U17: 0 | V17: 0
A18: Privé Alliance chrétienne
A19: Homme | B19: 118 | C19: 118 | D19: 0 | E19: 0 | F19: 0 | G19: 0 | H19: 109 | I19: 109 | J19: 0 | K19: 9 | L19: 9 | M19: 0 | N19: 0 | O19: 0 | P19: 0 | Q19: 0 | R19: 0 | S19: 0 | T19: 0 | U19: 0 | V19: 0
A20: TOTAL GENERAL | B20: 118 | C20: 118 | D20: 0 | E20: 0 | F20: 0 | G20: 0 | H20: 109 | I20: 109 | J20: 0 | K20: 9 | L20: 9 | M20: 0 | N20: 0 | O20: 0 | P20: 0 | Q20: 0 | R20: 0 | S20: 0 | T20: 0 | U20: 0 | V20: 0
A21: Privé Islamique
A22: Homme | B22: 43 | C22: 43 | D22: 0 | E22: 0 | F22: 0 | G22: 0 | H22: 43 | I22: 43 | J22: 0 | K22: 0 | L22: 0 | M22: 0 | N22: 0 | O22: 0 | P22: 0 | Q22: 0 | R22: 0 | S22: 0 | T22: 0 | U22: 0 | V22: 0
A23: TOTAL GENERAL | B23: 43 | C23: 43 | D23: 0 | E23: 0 | F23: 0 | G23: 0 | H23: 43 | I23: 43 | J23: 0 | K23: 0 | L23: 0 | M23: 0 | N23: 0 | O23: 0 | P23: 0 | Q23: 0 | R23: 0 | S23: 0 | T23: 0 | U23: 0 | V23: 0
A24: Privé Laïc
A25: Homme | B25: 1894 | C25: 1894 | D25: 0 | E25: 0 | F25: 0 | G25: 0 | H25: 1124 | I25: 1124 | J25: 0 | K25: 768 | L25: 768 | M25: 0 | N25: 0 | O25: 0 | P25: 0 | Q25: 2 | R25: 2 | S25: 0 | T25: 0 | U25: 0 | V25: 0
A26: Femme | B26: 483 | C26: 483 | D26: 0 | E26: 0 | F26: 0 | G26: 0 | H26: 288 | I26: 288 | J26: 0 | K26: 195 | L26: 195 | M26: 0 | N26: 0 | O26: 0 | P26: 0 | Q26: 0 | R26: 0 | S26: 0 | T26: 0 | U26: 0 | V26: 0
A27: TOTAL GENERAL | B27: 2377 | C27: 2377 | D27: 0 | E27: 0 | F27: 0 | G27: 0 | H27: 1412 | I27: 1412 | J27: 0 | K27: 963 | L27: 963 | M27: 0 | N27: 0 | O27: 0 | P27: 0 | Q27: 2 | R27: 2 | S27: 0 | T27: 0 | U27: 0 | V27: 0
A28: TOTAL PRIVE
A29: Homme | B29: 2867 | C29: 2867 | D29: 0 | E29: 0 | F29: 0 | G29: 0 | H29: 1933 | I29: 1933 | J29: 0 | K29: 930 | L29: 930 | M29: 0 | N29: 0 | O29: 0 | P29: 0 | Q29: 4 | R29: 4 | S29: 0 | T29: 0 | U29: 0 | V29: 0
A30: Femme | B30: 690 | C30: 690 | D30: 0 | E30: 0 | F30: 0 | G30: 0 | H30: 464 | I30: 464 | J30: 0 | K30: 226 | L30: 226 | M30: 0 | N30: 0 | O30: 0 | P30: 0 | Q30: 0 | R30: 0 | S30: 0 | T30: 0 | U30: 0 | V30: 0
A31: TOTAL GENERAL | B31: 3557 | C31: 3557 | D31: 0 | E31: 0 | F31: 0 | G31: 0 | H31: 2397 | I31: 2397 | J31: 0 | K31: 1156 | L31: 1156 | M31: 0 | N31: 0 | O31: 0 | P31: 0 | Q31: 4 | R31: 4 | S31: 0 | T31: 0 | U31: 0 | V31: 0
A32: TOTAL GENERAL
A33: Homme | B33: 5378 | C33: 5377 | D33: 1 | E33: 0 | F33: 0 | G33: 0 | H33: 4363 | I33: 4363 | J33: 0 | K33: 1006 | L33: 1006 | M33: 0 | N33: 0 | O33: 0 | P33: 0 | Q33: 9 | R33: 8 | S33: 1 | T33: 0 | U33: 0 | V33: 0
A34: Femme | B34: 1735 | C34: 1735 | D34: 0 | E34: 0 | F34: 0 | G34: 0 | H34: 1412 | I34: 1412 | J34: 0 | K34: 322 | L34: 322 | M34: 0 | N34: 0 | O34: 0 | P34: 0 | Q34: 1 | R34: 1 | S34: 0 | T34: 0 | U34: 0 | V34: 0
A35: TOTAL GENERAL | B35: 7113 | C35: 7112 | D35: 1 | E35: 0 | F35: 0 | G35: 0 | H35: 5775 | I35: 5775 | J35: 0 | K35: 1328 | L35: 1328 | M35: 0 | N35: 0 | O35: 0 | P35: 0 | Q35: 10 | R35: 9 | S35: 1 | T35: 0 | U35: 0 | V35: 0

Sheet Feuil2
A1: 23.2.1 Effectifs des enseignants du Secondaire général par Direction d’Académie Provinciale(DAP)
A2: 1.1.1. Province | B2: TOTAL GENERAL
A3: Estuaire | B3: 3513
A4: Haut-Ogooué | B4: 659
A5: Moyen-Ogooué | B5: 255
A6: Ngounié | B6: 581
A7: Nyanga | B7: 256
A8: Ogooué-Ivindo | B8: 244
A9: Ogooué-Lolo | B9: 291
A10: Ogooué-Maritime | B10: 619
A11: Woleu-N'tem | B11: 695
A12: TOTAL GENERAL | B12: 7113

Sheet Feuil3
A1: 29.1.1 Effectifs des élèves du secondaire général par DAP, genre, cycle et niveau d’étude
B2: Classes 5
B3: 6ème | C3: 5ème | D3: 4ème | E3: 3ème | F3: Total 1er Cycle | G3: 2nde | H3: 1ère | I3: Tle | J3: Total 2nd Cycle | K3: TOTAL GENERAL
A4: Estuaire
A5: Garçons | B5: 11066 | C5: 10046 | D5: 9488 | E5: 8156 | F5: 38756 | G5: 4887 | H5: 4261 | I5: 3514 | J5: 12662 | K5: 51418
A6: Filles | B6: 11612 | C6: 11400 | D6: 10251 | E6: 9166 | F6: 42429 | G6: 5639 | H6: 5612 | I6: 4633 | J6: 15884 | K6: 58313
A7: Total | B7: 22678 | C7: 21484 | D7: 19739 | E7: 17322 | F7: 81223 | G7: 10526 | H7: 9873 | I7: 8147 | J7: 28546 | K7: 109769
A8: Haut-Ogooué
A9: Garçons | B9: 2342 | C9: 2182 | D9: 2091 | E9: 1691 | F9: 8306 | G9: 918 | H9: 932 | I9: 787 | J9: 2637 | K9: 10943
A10: Filles | B10: 2654 | C10: 2471 | D10: 2435 | E10: 1911 | F10: 9471 | G10: 1105 | H10: 1143 | I10: 928 | J10: 3176 | K10: 12647
A11: Total | B11: 4996 | C11: 4781 | D11: 4526 | E11: 3602 | F11: 17905 | G11: 2023 | H11: 2075 | I11: 1715 | J11: 5813 | K11: 23718
A12: Moyen-Ogooué
A13: Garçons | B13: 854 | C13: 827 | D13: 853 | E13: 688 | F13: 3222 | G13: 449 | H13: 369 | I13: 349 | J13: 1167 | K13: 4389
A14: Filles | B14: 873 | C14: 860 | D14: 796 | E14: 821 | F14: 3350 | G14: 501 | H14: 400 | I14: 424 | J14: 1325 | K14: 4675
A15: Total | B15: 1727 | C15: 1687 | D15: 1649 | E15: 1509 | F15: 6572 | G15: 950 | H15: 769 | I15: 773 | J15: 2492 | K15: 9064
A16: Ngounié
A17: Garçons | B17: 1172 | C17: 1194 | D17: 1137 | E17: 1016 | F17: 4519 | G17: 716 | H17: 649 | I17: 571 | J17: 1936 | K17: 6455
A18: Filles | B18: 1302 | C18: 1427 | D18: 1179 | E18: 981 | F18: 4889 | G18: 859 | H18: 669 | I18: 573 | J18: 2101 | K18: 6990
A19: Total | B19: 2474 | C19: 2629 | D19: 2316 | E19: 1997 | F19: 9416 | G19: 1575 | H19: 1318 | I19: 1144 | J19: 4037 | K19: 13453
A20: Nyanga
A21: Garçons | B21: 459 | C21: 539 | D21: 494 | E21: 436 | F21: 1928 | G21: 242 | H21: 249 | I21: 193 | J21: 684 | K21: 2612
A22: Filles | B22: 427 | C22: 467 | D22: 521 | E22: 408 | F22: 1823 | G22: 279 | H22: 226 | I22: 194 | J22: 699 | K22: 2522
A23: Total | B23: 886 | C23: 1006 | D23: 1015 | E23: 844 | F23: 3751 | G23: 521 | H23: 475 | I23: 387 | J23: 1383 | K23: 5134
A24: Ogooué-Ivindo
A25: Garçons | B25: 731 | C25: 607 | D25: 571 | E25: 540 | F25: 2449 | G25: 362 | H25: 172 | I25: 177 | J25: 711 | K25: 3160
A26: Filles | B26: 687 | C26: 601 | D26: 511 | E26: 451 | F26: 2250 | G26: 356 | H26: 230 | I26: 212 | J26: 798 | K26: 3048
A27: Total | B27: 1418 | C27: 1208 | D27: 1082 | E27: 991 | F27: 4699 | G27: 718 | H27: 402 | I27: 389 | J27: 1509 | K27: 6208
A28: Ogooué-Lolo
A29: Garçons | B29: 368 | C29: 337 | D29: 379 | E29: 269 | F29: 1353 | G29: 304 | H29: 357 | I29: 291 | J29: 952 | K29: 2305
A30: Filles | B30: 391 | C30: 422 | D30: 390 | E30: 326 | F30: 1529 | G30: 314 | H30: 360 | I30: 279 | J30: 953 | K30: 2482
A31: Total | B31: 759 | C31: 759 | D31: 769 | E31: 595 | F31: 2882 | G31: 618 | H31: 717 | I31: 570 | J31: 1905 | K31: 4787
A32: Ogooué-Maritime
A33: Garçons | B33: 2739 | C33: 2108 | D33: 2176 | E33: 1926 | F33: 8949 | G33: 1131 | H33: 908 | I33: 592 | J33: 2631 | K33: 11580
A34: Filles | B34: 2821 | C34: 2972 | D34: 2688 | E34: 2354 | F34: 10835 | G34: 1465 | H34: 1247 | I34: 891 | J34: 3603 | K34: 14438
A35: Total | B35: 5560 | C35: 5205 | D35: 5000 | E35: 4280 | F35: 20045 | G35: 2596 | H35: 2155 | I35: 1483 | J35: 6234 | K35: 26279
A36: Woleu-N'tem
A37: Garçons | B37: 1524 | C37: 1464 | D37: 1448 | E37: 1295 | F37: 5731 | G37: 1072 | H37: 975 | I37: 896 | J37: 2943 | K37: 8674
A38: Filles | B38: 1472 | C38: 1581 | D38: 1478 | E38: 1335 | F38: 5866 | G38: 967 | H38: 879 | I38: 987 | J38: 2833 | K38: 8699
A39: Total | B39: 2996 | C39: 3045 | D39: 2926 | E39: 2630 | F39: 11597 | G39: 2039 | H39: 1854 | I39: 1883 | J39: 5776 | K39: 17373
A40: TOTAL GENERAL
A41: Garçons | B41: 21255 | C41: 19304 | D41: 18637 | E41: 16017 | F41: 75213 | G41: 10081 | H41: 8872 | I41: 7370 | J41: 26323 | K41: 101536
A42: Filles | B42: 22239 | C42: 22201 | D42: 20249 | E42: 17753 | F42: 82442 | G42: 11485 | H42: 10766 | I42: 9121 | J42: 31372 | K42: 113814
A43: Total | B43: 43494 | C43: 41804 | D43: 39022 | E43: 33770 | F43: 158090 | G43: 21566 | H43: 19638 | I43: 16491 | J43: 57695 | K43: 215785

Sheet REDOUBLANTS
A1: 22.2 Effectifs des redoublants du Secondaire général par Direction d’Académie Provinciale (DAP), Circonscription scolaire (CS),
A2: genre et niveau d’étude
B3: Classe 4
A4: Estuaire | B4: TOTAL GENERAL | C4: 6ème | D4: 5ème | E4: 4ème | F4: 3ème | G4: 2nde LE | H4: 2nde S | I4: 1ère A1 | J4: 1ère A2 | K4: 1ère B | L4: 1ère S | M4: 1ère ES | N4: 1ère L | O4: Tle A1 | P4: Tle A2 | Q4: Tle B | R4: Tle C | S4: Tle D | T4: Tle ES | U4: Tle S | V4: Tle L
A5: Garçons | B5: 13710 | C5: 3217 | D5: 23 | E5: 2622 | F5: 2466 | G5: 94 | H5: 238 | I5: 295 | J5: 124 | K5: 348 | L5: 168 | M5: 48 | N5: 1 | O5: 291 | P5: 29100 | Q5: 277 | R5: 48 | S5: 17 | T5: 1 | U5: 2 | V5: 200
A6: Filles | B6: 13567 | C6: 2679 | D6: 20 | E6: 2401 | F6: 2454 | G6: 102 | H6: 225 | I6: 354 | J6: 157 | K6: 341 | L6: 167 | M6: 49 | N6: 3 | O6: 458 | P6: 15267 | Q6: 438 | R6: 36 | S6: 8 | T6: 0 | U6: 3 | V6: 0
A7: Total | B7: =+SUM(B5:B6) -> 27277 | C7: =+SUM(C5:C6) -> 5896 | D7: 43 | E7: 5023 | F7: 4920 | G7: 196 | H7: 463 | I7: 649 | J7: 281 | K7: 689 | L7: 335 | M7: 97 | N7: 4 | O7: 749 | P7: 44367 | Q7: 715 | R7: 84 | S7: 25 | T7: 1 | U7: 5 | V7: 200
A8: Haut-Ogooué
A9: Garçons | B9: 2610 | C9: 775 | D9: 30 | E9: 489 | F9: 410 | G9: 84 | H9: 44 | I9: 76 | J9: 173 | K9: 64 | L9: 63 | M9: 98 | N9: 0 | O9: 25 | P9: 0 | Q9: 12 | R9: 3 | S9: 25 | T9: 0 | U9: 0 | V9: 0
A10: Filles | B10: 2842 | C10: 751 | D10: 26 | E10: 613 | F10: 502 | G10: 82 | H10: 49 | I10: 106 | J10: 216 | K10: 74 | L10: 37 | M10: 50 | N10: 0 | O10: 50 | P10: 0 | Q10: 24 | R10: 2 | S10: 8 | T10: 0 | U10: 0 | V10: 0
A11: Total | B11: =+SUM(B9:B10) -> 5452 | C11: =+SUM(C9:C10) -> 1526 | D11: 56 | E11: 1102 | F11: 912 | G11: 166 | H11: 93 | I11: 182 | J11: 389 | K11: 138 | L11: 100 | M11: 148 | N11: 0 | O11: 75 | P11: 0 | Q11: 36 | R11: 5 | S11: 33 | T11: 0 | U11: 0 | V11: 0
A12: Moyen-Ogooué
A13: Garçons | B13: 819 | C13: 251 | D13: 31 | E13: 132 | F13: 162 | G13: 123 | H13: 18 | I13: 25 | J13: 139 | K13: 24 | L13: 4 | M13: 17 | N13: 0 | O13: 12 | P13: 0 | Q13: 14 | R13: 0 | S13: 0 | T13: 0 | U13: 0 | V13: 0
A14: Filles | B14: 841 | C14: 212 | D14: 25 | E14: 136 | F14: 208 | G14: 153 | H14: 16 | I14: 25 | J14: 156 | K14: 34 | L14: 5 | M14: 15 | N14: 0 | O14: 27 | P14: 0 | Q14: 14 | R14: 0 | S14: 0 | T14: 0 | U14: 0 | V14: 0
A15: Total | B15: 1660 | C15: 463 | D15: 28 | E15: 268 | F15: 370 | G15: 138 | H15: 34 | I15: 50 | J15: 147 | K15: 58 | L15: 9 | M15: 16 | N15: 0 | O15: 39 | P15: 0 | Q15: 28 | R15: 0 | S15: 0 | T15: 0 | U15: 0 | V15: 0
A16: Ngounié
A17: Garçons | B17: 1666 | C17: 401 | D17: 24 | E17: 329 | F17: 313 | G17: 95 | H17: 23 | I17: 37 | J17: 161 | K17: 41 | L17: 9 | M17: 22 | N17: 0 | O17: 42 | P17: 0 | Q17: 31 | R17: 0 | S17: 0 | T17: 0 | U17: 0 | V17: 0
A18: Filles | B18: 1585 | C18: 354 | D18: 22 | E18: 269 | F18: 317 | G18: 118 | H18: 18 | I18: 42 | J18: 233 | K18: 34 | L18: 1 | M18: 3 | N18: 0 | O18: 61 | P18: 0 | Q18: 44 | R18: 0 | S18: 0 | T18: 0 | U18: 0 | V18: 0
A19: Total | B19: =+SUM(B17:B18) -> 3251 | C19: =+SUM(C17:C18) -> 755 | D19: 46 | E19: 598 | F19: 630 | G19: 213 | H19: 41 | I19: 79 | J19: 394 | K19: 75 | L19: 10 | M19: 25 | N19: 0 | O19: 103 | P19: 0 | Q19: 75 | R19: 0 | S19: 0 | T19: 0 | U19: 0 | V19: 0
A20: Nyanga
A21: Garçons | B21: 1053 | C21: 258 | D21: 25 | E21: 195 | F21: 192 | G21: 98 | H21: 18 | I21: 30 | J21: 167 | K21: 21 | L21: 13 | M21: 62 | N21: 0 | O21: 45 | P21: 0 | Q21: 26 | R21: 0 | S21: 0 | T21: 0 | U21: 0 | V21: 0
A22: Filles | B22: 1051 | C22: 214 | D22: 20 | E22: 209 | F22: 217 | G22: 104 | H22: 9 | I22: 43 | J22: 478 | K22: 23 | L22: 5 | M22: 22 | N22: 0 | O22: 48 | P22: 0 | Q22: 19 | R22: 0 | S22: 0 | T22: 0 | U22: 0 | V22: 0
A23: Total | B23: 2104 | C23: 472 | D23: 22 | E23: 404 | F23: 409 | G23: 101 | H23: 27 | I23: 73 | J23: 270 | K23: 44 | L23: 18 | M23: 41 | N23: 0 | O23: 93 | P23: 0 | Q23: 45 | R23: 0 | S23: 0 | T23: 0 | U23: 0 | V23: 0
A24: Ogooué-Ivindo
A25: Garçons | B25: 931 | C25: 267 | D25: 29 | E25: 120 | F25: 210 | G25: 175 | H25: 12 | I25: 13 | J25: 108 | K25: 10 | L25: 1 | M25: 10 | N25: 0 | O25: 8 | P25: 0 | Q25: 10 | R25: 0 | S25: 0 | T25: 0 | U25: 0 | V25: 0
A26: Filles | B26: 804 | C26: 262 | D26: 33 | E26: 95 | F26: 137 | G26: 144 | H26: 9 | I26: 19 | J26: 211 | K26: 10 | L26: 1 | M26: 10 | N26: 0 | O26: 11 | P26: 0 | Q26: 11 | R26: 0 | S26: 0 | T26: 0 | U26: 0 | V26: 0
A27: Total | B27: 1735 | C27: 529 | D27: 30 | E27: 215 | F27: 347 | G27: 161 | H27: 21 | I27: 32 | J27: 152 | K27: 20 | L27: 2 | M27: 10 | N27: 0 | O27: 19 | P27: 0 | Q27: 21 | R27: 0 | S27: 0 | T27: 0 | U27: 0 | V27: 0
A28: Ogooué-Lolo
A29: Garçons | B29: 400 | C29: 91 | D29: 23 | E29: 47 | F29: 33 | G29: 70 | H29: 6 | I29: 18 | J29: 300 | K29: 31 | L29: 8 | M29: 26 | N29: 0 | O29: 14 | P29: 0 | Q29: 31 | R29: 0 | S29: 0 | T29: 0 | U29: 0 | V29: 0
A30: Filles | B30: 419 | C30: 122 | D30: 29 | E30: 50 | F30: 38 | G30: 76 | H30: 6 | I30: 19 | J30: 317 | K30: 30 | L30: 3 | M30: 10 | N30: 0 | O30: 11 | P30: 0 | Q30: 26 | R30: 0 | S30: 0 | T30: 0 | U30: 0 | V30: 0
A31: Total | B31: 819 | C31: 213 | D31: 26 | E31: 97 | F31: 71 | G31: 73 | H31: 12 | I31: 37 | J31: 308 | K31: 61 | L31: 11 | M31: 18 | N31: 0 | O31: 25 | P31: 0 | Q31: 57 | R31: 0 | S31: 0 | T31: 0 | U31: 0 | V31: 0
A32: Ogooué-Maritime
A33: Garçons | B33: 3755 | C33: 1170 | D33: 31 | E33: 597 | F33: 817 | G33: 137 | H33: 94 | I33: 71 | J33: 76 | K33: 100 | L33: 64 | M33: 64 | N33: 0 | O33: 28 | P33: 0 | Q33: 31 | R33: 8 | S33: 26 | T33: 0 | U33: 0 | V33: 0
A34: Filles | B34: 3724 | C34: 866 | D34: 23 | E34: 662 | F34: 852 | G34: 129 | H34: 80 | I34: 105 | J34: 131 | K34: 132 | L34: 39 | M34: 30 | N34: 0 | O34: 39 | P34: 0 | Q34: 78 | R34: 2 | S34: 3 | T34: 0 | U34: 0 | V34: 0
A35: Total | B35: =+SUM(B33:B34) -> 7479 | C35: =+SUM(C33:C34) -> 2036 | D35: 54 | E35: 1259 | F35: 1669 | G35: 266 | H35: 174 | I35: 176 | J35: 207 | K35: 232 | L35: 103 | M35: 94 | N35: 0 | O35: 67 | P35: 0 | Q35: 109 | R35: 10 | S35: 29 | T35: 0 | U35: 0 | V35: 0
A36: Woleu-N'tem
A37: Garçons | B37: 2488 | C37: 517 | D37: 21 | E37: 509 | F37: 463 | G37: 91 | H37: 47 | I37: 88 | J37: 187 | K37: 82 | L37: 31 | M37: 38 | N37: 0 | O37: 52 | P37: 0 | Q37: 50 | R37: 2 | S37: 4 | T37: 0 | U37: 0 | V37: 0
A38: Filles | B38: 2297 | C38: 469 | D38: 20 | E38: 471 | F38: 407 | G38: 86 | H38: 25 | I38: 97 | J38: 388 | K38: 65 | L38: 13 | M38: 20 | N38: 0 | O38: 102 | P38: 0 | Q38: 42 | R38: 1 | S38: 2 | T38: 0 | U38: 0 | V38: 0
A39: Total | B39: 4785 | C39: 986 | D39: 21 | E39: 980 | F39: 870 | G39: 89 | H39: 72 | I39: 185 | J39: 257 | K39: 147 | L39: 44 | M39: 30 | N39: 0 | O39: 154 | P39: 0 | Q39: 92 | R39: 3 | S39: 3 | T39: 0 | U39: 0 | V39: 0
A40: TOTAL GENERAL
A41: Garçons | B41: 27432 | C41: 6947 | D41: 25 | E41: 5040 | F41: 5066 | G41: 101 | H41: 500 | I41: 653 | J41: 131 | K41: 721 | L41: 361 | M41: 50 | N41: 1 | O41: 517 | P41: 51700 | Q41: 482 | R41: 61 | S41: 13 | T41: 1 | U41: 2 | V41: 200
A42: Filles | B42: 27130 | C42: 5929 | D42: 22 | E42: 4906 | F42: 5132 | G42: 105 | H42: 437 | I42: 810 | J42: 185 | K42: 743 | L42: 271 | M42: 36 | N42: 3 | O42: 807 | P42: 26900 | Q42: 696 | R42: 41 | S42: 6 | T42: 0 | U42: 3 | V42: 0
A43: Total | B43: =+SUM(B41:B42) -> 54562 | C43: =+SUM(C41:C42) -> 12876 | D43: 47 | E43: 9946 | F43: 10198 | G43: 206 | H43: 937 | I43: 1463 | J43: 316 | K43: 1464 | L43: 632 | M43: 86 | N43: 4 | O43: 1324 | P43: 78600 | Q43: 1178 | R43: 102 | S43: 19 | T43: 1 | U43: 5 | V43: 200
D45: =+(B43-53088)/53088*100 -> 2.776522001

Sheet Feuil5
A1: 23.1.1 Effectifs des enseignants du secondaire général par province, genre et qualification
B2: Type de personnel
B3: TOTAL GENERAL | E3: 1. ADMINISTRATIF | H3: 2. ENSEIGNANT PERMANENT | K3: 3. ENSEIGNANT VACATAIRE | N3: 4. APPUI | Q3: 5. FORMATEUR | T3: NON DECLARE
B4: Qualifié/non qualifié | E4: Qualifié/non qualifié | H4: Qualifié/non qualifié | K4: Qualifié/non qualifié | N4: Qualifié/non qualifié | Q4: Qualifié/non qualifié | T4: Qualifié/non qualifié
B5: TOTAL GENERAL | C5: Qualifié | D5: Non qualifié | E5: TOTAL GENERAL | F5: Qualifié | G5: Non qualifié | H5: TOTAL GENERAL | I5: Qualifié | J5: Non qualifié | K5: TOTAL GENERAL | L5: Qualifié | M5: Non qualifié | N5: TOTAL GENERAL | O5: Qualifié | P5: Non qualifié | Q5: TOTAL GENERAL | R5: Qualifié | S5: Non qualifié | T5: TOTAL GENERAL | U5: Qualifié | V5: Non qualifié
A6: Estuaire
A7: Homme | B7: 2318 | C7: 2317 | D7: 1 | E7: 0 | F7: 0 | G7: 0 | H7: 1784 | I7: 1784 | J7: 0 | K7: 532 | L7: 532 | M7: 0 | N7: 0 | O7: 0 | P7: 0 | Q7: 2 | R7: 1 | S7: 1 | T7: 0 | U7: 0 | V7: 0
A8: Femme | B8: 1195 | C8: 1195 | D8: 0 | E8: 0 | F8: 0 | G8: 0 | H8: 978 | I8: 978 | J8: 0 | K8: 217 | L8: 217 | M8: 0 | N8: 0 | O8: 0 | P8: 0 | Q8: 0 | R8: 0 | S8: 0 | T8: 0 | U8: 0 | V8: 0
A9: TOTAL GENERAL | B9: 3513 | C9: 3512 | D9: 1 | E9: 0 | F9: 0 | G9: 0 | H9: 2762 | I9: 2762 | J9: 0 | K9: 749 | L9: 749 | M9: 0 | N9: 0 | O9: 0 | P9: 0 | Q9: 2 | R9: 1 | S9: 1 | T9: 0 | U9: 0 | V9: 0
A10: Haut-Ogooué
A11: Homme | B11: 562 | C11: 562 | D11: 0 | E11: 0 | F11: 0 | G11: 0 | H11: 460 | I11: 460 | J11: 0 | K11: 102 | L11: 102 | M11: 0 | N11: 0 | O11: 0 | P11: 0 | Q11: 0 | R11: 0 | S11: 0 | T11: 0 | U11: 0 | V11: 0
A12: Femme | B12: 97 | C12: 97 | D12: 0 | E12: 0 | F12: 0 | G12: 0 | H12: 87 | I12: 87 | J12: 0 | K12: 10 | L12: 10 | M12: 0 | N12: 0 | O12: 0 | P12: 0 | Q12: 0 | R12: 0 | S12: 0 | T12: 0 | U12: 0 | V12: 0
A13: TOTAL GENERAL | B13: 659 | C13: 659 | D13: 0 | E13: 0 | F13: 0 | G13: 0 | H13: 547 | I13: 547 | J13: 0 | K13: 112 | L13: 112 | M13: 0 | N13: 0 | O13: 0 | P13: 0 | Q13: 0 | R13: 0 | S13: 0 | T13: 0 | U13: 0 | V13: 0
A14: Moyen-Ogooué
A15: Homme | B15: 198 | C15: 198 | D15: 0 | E15: 0 | F15: 0 | G15: 0 | H15: 164 | I15: 164 | J15: 0 | K15: 33 | L15: 33 | M15: 0 | N15: 0 | O15: 0 | P15: 0 | Q15: 1 | R15: 1 | S15: 0 | T15: 0 | U15: 0 | V15: 0
A16: Femme | B16: 57 | C16: 57 | D16: 0 | E16: 0 | F16: 0 | G16: 0 | H16: 24 | I16: 24 | J16: 0 | K16: 33 | L16: 33 | M16: 0 | N16: 0 | O16: 0 | P16: 0 | Q16: 0 | R16: 0 | S16: 0 | T16: 0 | U16: 0 | V16: 0
A17: TOTAL GENERAL | B17: 255 | C17: 255 | D17: 0 | E17: 0 | F17: 0 | G17: 0 | H17: 188 | I17: 188 | J17: 0 | K17: 66 | L17: 66 | M17: 0 | N17: 0 | O17: 0 | P17: 0 | Q17: 1 | R17: 1 | S17: 0 | T17: 0 | U17: 0 | V17: 0
A18: Ngounié
A19: Homme | B19: 576 | C19: 576 | D19: 0 | E19: 0 | F19: 0 | G19: 0 | H19: 491 | I19: 491 | J19: 0 | K19: 85 | L19: 85 | M19: 0 | N19: 0 | O19: 0 | P19: 0 | Q19: 0 | R19: 0 | S19: 0 | T19: 0 | U19: 0 | V19: 0
A20: Femme | B20: 5 | C20: 5 | D20: 0 | E20: 0 | F20: 0 | G20: 0 | H20: 0 | I20: 0 | J20: 0 | K20: 5 | L20: 5 | M20: 0 | N20: 0 | O20: 0 | P20: 0 | Q20: 0 | R20: 0 | S20: 0 | T20: 0 | U20: 0 | V20: 0
A21: TOTAL GENERAL | B21: 581 | C21: 581 | D21: 0 | E21: 0 | F21: 0 | G21: 0 | H21: 491 | I21: 491 | J21: 0 | K21: 90 | L21: 90 | M21: 0 | N21: 0 | O21: 0 | P21: 0 | Q21: 0 | R21: 0 | S21: 0 | T21: 0 | U21: 0 | V21: 0
A22: Nyanga
A23: Homme | B23: 231 | C23: 231 | D23: 0 | E23: 0 | F23: 0 | G23: 0 | H23: 192 | I23: 192 | J23: 0 | K23: 39 | L23: 39 | M23: 0 | N23: 0 | O23: 0 | P23: 0 | Q23: 0 | R23: 0 | S23: 0 | T23: 0 | U23: 0 | V23: 0
A24: Femme | B24: 25 | C24: 25 | D24: 0 | E24: 0 | F24: 0 | G24: 0 | H24: 13 | I24: 13 | J24: 0 | K24: 12 | L24: 12 | M24: 0 | N24: 0 | O24: 0 | P24: 0 | Q24: 0 | R24: 0 | S24: 0 | T24: 0 | U24: 0 | V24: 0
A25: TOTAL GENERAL | B25: 256 | C25: 256 | D25: 0 | E25: 0 | F25: 0 | G25: 0 | H25: 205 | I25: 205 | J25: 0 | K25: 51 | L25: 51 | M25: 0 | N25: 0 | O25: 0 | P25: 0 | Q25: 0 | R25: 0 | S25: 0 | T25: 0 | U25: 0 | V25: 0
A26: Ogooué-Ivindo
A27: Homme | B27: 213 | C27: 213 | D27: 0 | E27: 0 | F27: 0 | G27: 0 | H27: 197 | I27: 197 | J27: 0 | K27: 10 | L27: 10 | M27: 0 | N27: 0 | O27: 0 | P27: 0 | Q27: 6 | R27: 6 | S27: 0 | T27: 0 | U27: 0 | V27: 0
A28: Femme | B28: 31 | C28: 31 | D28: 0 | E28: 0 | F28: 0 | G28: 0 | H28: 31 | I28: 31 | J28: 0 | K28: 0 | L28: 0 | M28: 0 | N28: 0 | O28: 0 | P28: 0 | Q28: 0 | R28: 0 | S28: 0 | T28: 0 | U28: 0 | V28: 0
A29: TOTAL GENERAL | B29: 244 | C29: 244 | D29: 0 | E29: 0 | F29: 0 | G29: 0 | H29: 228 | I29: 228 | J29: 0 | K29: 10 | L29: 10 | M29: 0 | N29: 0 | O29: 0 | P29: 0 | Q29: 6 | R29: 6 | S29: 0 | T29: 0 | U29: 0 | V29: 0
A30: Ogooué-Lolo
A31: Homme | B31: 284 | C31: 284 | D31: 0 | E31: 0 | F31: 0 | G31: 0 | H31: 257 | I31: 257 | J31: 0 | K31: 27 | L31: 27 | M31: 0 | N31: 0 | O31: 0 | P31: 0 | Q31: 0 | R31: 0 | S31: 0 | T31: 0 | U31: 0 | V31: 0
A32: Femme | B32: 7 | C32: 7 | D32: 0 | E32: 0 | F32: 0 | G32: 0 | H32: 4 | I32: 4 | J32: 0 | K32: 3 | L32: 3 | M32: 0 | N32: 0 | O32: 0 | P32: 0 | Q32: 0 | R32: 0 | S32: 0 | T32: 0 | U32: 0 | V32: 0
A33: TOTAL GENERAL | B33: 291 | C33: 291 | D33: 0 | E33: 0 | F33: 0 | G33: 0 | H33: 261 | I33: 261 | J33: 0 | K33: 30 | L33: 30 | M33: 0 | N33: 0 | O33: 0 | P33: 0 | Q33: 0 | R33: 0 | S33: 0 | T33: 0 | U33: 0 | V33: 0
A34: Ogooué-Maritime
A35: Homme | B35: 403 | C35: 403 | D35: 0 | E35: 0 | F35: 0 | G35: 0 | H35: 328 | I35: 328 | J35: 0 | K35: 75 | L35: 75 | M35: 0 | N35: 0 | O35: 0 | P35: 0 | Q35: 0 | R35: 0 | S35: 0 | T35: 0 | U35: 0 | V35: 0
A36: Femme | B36: 216 | C36: 216 | D36: 0 | E36: 0 | F36: 0 | G36: 0 | H36: 176 | I36: 176 | J36: 0 | K36: 40 | L36: 40 | M36: 0 | N36: 0 | O36: 0 | P36: 0 | Q36: 0 | R36: 0 | S36: 0 | T36: 0 | U36: 0 | V36: 0
A37: TOTAL GENERAL | B37: 619 | C37: 619 | D37: 0 | E37: 0 | F37: 0 | G37: 0 | H37: 504 | I37: 504 | J37: 0 | K37: 115 | L37: 115 | M37: 0 | N37: 0 | O37: 0 | P37: 0 | Q37: 0 | R37: 0 | S37: 0 | T37: 0 | U37: 0 | V37: 0
A38: Woleu-N'tem
A39: Homme | B39: 593 | C39: 593 | D39: 0 | E39: 0 | F39: 0 | G39: 0 | H39: 490 | I39: 490 | J39: 0 | K39: 103 | L39: 103 | M39: 0 | N39: 0 | O39: 0 | P39: 0 | Q39: 0 | R39: 0 | S39: 0 | T39: 0 | U39: 0 | V39: 0
A40: Femme | B40: 102 | C40: 102 | D40: 0 | E40: 0 | F40: 0 | G40: 0 | H40: 99 | I40: 99 | J40: 0 | K40: 2 | L40: 2 | M40: 0 | N40: 0 | O40: 0 | P40: 0 | Q40: 1 | R40: 1 | S40: 0 | T40: 0 | U40: 0 | V40: 0
A41: TOTAL GENERAL | B41: 695 | C41: 695 | D41: 0 | E41: 0 | F41: 0 | G41: 0 | H41: 589 | I41: 589 | J41: 0 | K41: 105 | L41: 105 | M41: 0 | N41: 0 | O41: 0 | P41: 0 | Q41: 1 | R41: 1 | S41: 0 | T41: 0 | U41: 0 | V41: 0
A42: TOTAL GENERAL
A43: Homme | B43: 5378 | C43: 5377 | D43: 1 | E43: 0 | F43: 0 | G43: 0 | H43: 4363 | I43: 4363 | J43: 0 | K43: 1006 | L43: 1006 | M43: 0 | N43: 0 | O43: 0 | P43: 0 | Q43: 9 | R43: 8 | S43: 1 | T43: 0 | U43: 0 | V43: 0
A44: Femme | B44: 1735 | C44: 1735 | D44: 0 | E44: 0 | F44: 0 | G44: 0 | H44: 1412 | I44: 1412 | J44: 0 | K44: 322 | L44: 322 | M44: 0 | N44: 0 | O44: 0 | P44: 0 | Q44: 1 | R44: 1 | S44: 0 | T44: 0 | U44: 0 | V44: 0
A45: TOTAL GENERAL | B45: 7113 | C45: 7112 | D45: 1 | E45: 0 | F45: 0 | G45: 0 | H45: 5775 | I45: 5775 | J45: 0 | K45: 1328 | L45: 1328 | M45: 0 | N45: 0 | O45: 0 | P45: 0 | Q45: 10 | R45: 9 | S45: 1 | T45: 0 | U45: 0 | V45: 0

Sheet Feuil6
A1: 35.1 Nombre d’établissements du Secondaire Général par DAP disposant certaines commodités
A2: 1.1.1. Province | B2: Eau potable | C2: Toilettes fonctionnelles | D2: 2.4. Quelle est la principale source d’approvisionnement en électricité ?
B3: Eau potable | C3: Toilettes fonctionnelles | D3: Dispose d'électricité
A4: Estuaire | B4: 158 | C4: 155 | D4: 157
A5: Haut-Ogooué | B5: 44 | C5: 43 | D5: 44
A6: Moyen-Ogooué | B6: 14 | C6: 14 | D6: 13
A7: Ngounié | B7: 28 | C7: 26 | D7: 27
A8: Nyanga | B8: 11 | C8: 9 | D8: 12
A9: Ogooué-Ivindo | B9: 10 | C9: 9 | D9: 10
A10: Ogooué-Lolo | B10: 12 | C10: 10 | D10: 10
A11: Ogooué-Maritime | B11: 38 | C11: 37 | D11: 38
A12: Woleu-N'tem | B12: 33 | C12: 31 | D12: 30
A13: TOTAL GENERAL | B13: 348 | C13: 334 | D13: 341

Sheet Feuil7
A1: 34.1 Nombre de salles de classe dans le Secondaire Général par Direction d’Académie Provinciale (DPAS) selon l’état
A2: 1.1.1. Province | B2: etat des salles de classe | C2: etat des salles de classe | D2: etat des salles de classe | E2: etat des salles de classe
B3: bon etat | C3: mauvais etat | D3: matériaux provisoires | E3: total
A4: Estuaire | B4: 4700 | C4: 2078 | D4: 293 | E4: 4
A5: Haut-Ogooué | B5: 1200 | C5: 553 | D5: 48 | E5: 4
A6: Moyen-Ogooué | B6: 340 | C6: 162 | D6: 9 | E6: 2
A7: Ngounié | B7: 710 | C7: 298 | D7: 64 | E7: 14
A8: Nyanga | B8: 318 | C8: 119 | D8: 25 | E8: 0
A9: Ogooué-Ivindo | B9: 246 | C9: 115 | D9: 7 | E9: 0
A10: Ogooué-Lolo | B10: 390 | C10: 142 | D10: 53 | E10: 0
A11: Ogooué-Maritime | B11: 902 | C11: 338 | D11: 128 | E11: 22
A12: Woleu-N'tem | B12: 932 | C12: 356 | D12: 108 | E12: 0
A13: TOTAL GENERAL | B13: 9738 | C13: 4161 | D13: 735 | E13: 46

Sheet Feuil7 (2)
A1: 7.1 Principaux chiffres du secondaire général par Direction Provinciale de l’Action Sociale (DPAS),(Public+Privé)
A2: DPAS | C2: T8x Sexe des apprenants | D2: T8x Sexe des apprenants | E2: T8x Sexe des apprenants | F2: Educateurs permanents | J2: Personnels administratifs | M2: Salles de classe
B3: Nombre d'établissements | C3: Garçons | D3: Filles | E3: Total | F3: H | G3: F | H3: T | I3: Ratio enfants/
A4: écaducateur permanent | B4: H | C4: F | D4: T | E4: Total salles de classe | F4: % en bon état | G4: Ratio Enfants/salle de classe en bon état
A5: Estuaire | B5: 158 | C5: 51418 | D5: 58313 | E5: 109731 | F5: 2347 | G5: 1166 | H5: 3513 | I5: 31.2 | J5: 583 | K5: 639 | L5: 1222 | M5: 4700 | N5: 44.2 | O5: 52.8
A6: Haut-Ogooué | B6: 44 | C6: 10943 | D6: 12647 | E6: 23590 | F6: 471 | G6: 188 | H6: 659 | I6: 35.8 | J6: 154 | K6: 101 | L6: 255 | M6: 1200 | N6: 46.1 | O6: 42.7
A7: Moyen-Ogooué | B7: 14 | C7: 4389 | D7: 4675 | E7: 9064 | F7: 186 | G7: 69 | H7: 255 | I7: 35.5 | J7: 61 | K7: 38 | L7: 99 | M7: 340 | N7: 47.6 | O7: 56
A8: Ngounié | B8: 28 | C8: 6455 | D8: 6990 | E8: 13445 | F8: 449 | G8: 132 | H8: 581 | I8: 23.1 | J8: 192 | K8: 91 | L8: 283 | M8: 710 | N8: 42 | O8: 45.1
A9: Nyanga | B9: 12 | C9: 2612 | D9: 2522 | E9: 5134 | F9: 192 | G9: 64 | H9: 256 | I9: 20.1 | J9: 70 | K9: 25 | L9: 95 | M9: 318 | N9: 37.4 | O9: 43.1
A10: Ogooué-Ivindo | B10: 10 | C10: 3160 | D10: 3048 | E10: 6208 | F10: 192 | G10: 52 | H10: 244 | I10: 25.4 | J10: 65 | K10: 38 | L10: 103 | M10: 246 | N10: 46.7 | O10: 54
A11: Ogooué-Lolo | B11: 12 | C11: 2305 | D11: 2482 | E11: 4787 | F11: 220 | G11: 71 | H11: 291 | I11: 16.5 | J11: 47 | K11: 32 | L11: 79 | M11: 390 | N11: 36.4 | O11: 33.7
A12: Ogooué-Maritime | B12: 38 | C12: 11580 | D12: 14438 | E12: 26018 | F12: 436 | G12: 183 | H12: 619 | I12: 42 | J12: 124 | K12: 123 | L12: 247 | M12: 902 | N12: 37.5 | O12: 77
A13: Woleu-N'tem | B13: 33 | C13: 8674 | D13: 8699 | E13: 17373 | F13: 538 | G13: 157 | H13: 695 | I13: 25 | J13: 271 | K13: 197 | L13: 468 | M13: 932 | N13: 38.2 | O13: 48.8
A14: TOTAL GENERAL | B14: 349 | C14: 101536 | D14: 113814 | E14: 215350 | F14: 5031 | G14: 2082 | H14: 7113 | I14: 30.3 | J14: 1567 | K14: 1284 | L14: 2851 | M14: 9738 | N14: 42.7 | O14: 51.8
